bitfinex/quotes_SOLUSD_20240708
["timestamp","ask_amount","ask_price","bid_price","bid_amount"]
[1720396981998,100.0,132.46,132.41,8.3495]
[1720396982186,100.0,132.51,132.41,8.3495]
[1720396982367,100.0,132.46,132.41,8.3495]
[1720396982966,100.0,132.48,132.41,8.3495]
[1720396983262,100.0,132.46,132.41,8.3495]
[1720396983470,100.0,132.42,132.38,0.8159368]
[1720396984412,100.0,132.4,132.38,0.8159368]
[1720396985467,100.0,132.46,132.38,0.8159368]
[1720396985665,100.0,132.41,132.38,0.8159368]
[1720396985891,100.0,132.39,132.38,0.8159368]
[1720396986486,20.0,132.45,132.38,0.8159368]
[1720396986685,100.0,132.39,132.38,0.8159368]
[1720396987692,100.0,132.39,132.26,8.4734]
[1720396987693,100.0,132.32,132.26,8.4734]
[1720396988088,100.0,132.3,132.26,8.4734]
[1720396988398,23.6401,132.4,132.25,0.8159368]
[1720396988399,100.0,132.28,132.25,0.8159368]
[1720396988571,100.0,132.26,132.25,0.8159368]
[1720396989789,100.0,132.3,132.25,0.8159368]
[1720396989995,15.0,132.34,132.25,0.8159368]
[1720396990217,100.0,132.27,132.25,0.8159368]
[1720396990808,100.0,132.29,132.25,0.8159368]
[1720396991691,100.0,132.29,132.26,0.17]
[1720396991871,100.0,132.29,132.25,0.8159368]
[1720396992067,100.0,132.31,132.25,0.8159368]
[1720396992271,100.0,132.38,132.26,8.4529]
[1720396992486,100.0,132.4,132.26,8.4529]
[1720396992692,100.0,132.37,132.27,20.0]
[1720396992990,100.0,132.35,132.28,0.17]
[1720396993175,15.0,132.47,132.29,21.0882]
[1720396993374,8.2398,132.5,132.29,21.0882]
[1720396993375,100.0,132.43,132.31,38.4]
[1720396993701,100.0,132.43,132.32,20.0]
[1720396993881,100.0,132.47,132.33,0.17]
[1720396994209,100.0,132.47,132.36,8.3644]
[1720396994498,8.2398,132.56,132.39,38.4]
[1720396994499,100.0,132.53,132.39,38.4]
[1720396994678,100.0,132.53,132.4,20.0]
[1720396994876,100.0,132.5,132.41,0.17]
[1720396995265,100.0,132.52,132.42,20.9696]
[1720396995470,100.0,132.52,132.43,20.17]
[1720396995898,15.0,132.61,132.43,20.17]
[1720396995899,100.0,132.54,132.43,20.17]
[1720396996087,100.0,132.54,132.43,58.57]
[1720396996265,100.0,132.55,132.43,58.57]
[1720396996974,100.0,132.51,132.43,58.57]
[1720396997181,100.0,132.49,132.43,0.17]
[1720396997494,100.0,132.54,132.43,0.17]
[1720396997696,100.0,132.52,132.43,20.17]
[1720396998069,15.0,132.61,132.43,20.17]
[1720396998070,100.0,132.53,132.43,20.17]
[1720396998276,100.0,132.5,132.43,20.17]
[1720396998488,100.0,132.48,132.43,20.17]
[1720396998672,100.0,132.53,132.43,20.17]
[1720396999307,15.0,132.64,132.43,25.4557]
[1720396999476,100.0,132.57,132.43,20.17]
[1720396999679,100.0,132.53,132.43,20.17]
[1720396999923,100.0,132.55,132.43,20.17]
[1720397000313,34.44416793,132.68,132.43,20.17]
[1720397000314,100.0,132.57,132.43,20.17]
[1720397000678,100.0,132.59,132.48,8.4085]
[1720397000893,100.0,132.59,132.49,20.17]
[1720397001096,100.0,132.57,132.49,20.17]
[1720397001306,100.0,132.55,132.49,20.17]
[1720397001690,100.0,132.57,132.49,20.17]
[1720397002179,100.0,132.59,132.49,20.17]
[1720397002383,100.0,132.63,132.49,42.87]
[1720397002592,100.0,132.63,132.5,5.2826]
[1720397002905,260.1,132.7,132.5,5.2826]
[1720397002906,100.0,132.66,132.52,44.0253]
[1720397003108,100.0,132.66,132.53,20.17]
[1720397003606,100.0,132.66,132.53,42.87]
[1720397004114,100.0,132.64,132.53,20.17]
[1720397004285,100.0,132.61,132.53,20.17]
[1720397004616,100.0,132.59,132.52,21.3253]
[1720397004813,100.0,132.63,132.52,21.3253]
[1720397005106,260.1,132.68,132.52,21.3253]
[1720397005306,100.0,132.66,132.55,38.4]
[1720397005803,100.0,132.66,132.56,20.0]
[1720397006183,100.0,132.61,132.56,20.0]
[1720397006387,100.0,132.61,132.52,21.3253]
[1720397006786,100.0,132.58,132.52,21.3253]
[1720397007294,100.0,132.55,132.48,8.4085]
[1720397007488,100.0,132.57,132.48,8.4085]
[1720397007805,260.1,132.65,132.48,8.4085]
[1720397007806,100.0,132.58,132.48,8.4085]
[1720397008284,100.0,132.54,132.48,8.4085]
[1720397008786,100.0,132.57,132.48,8.4085]
[1720397009200,100.0,132.64,132.48,8.4085]
[1720397009409,100.0,132.64,132.51,5.2823]
[1720397009711,100.0,132.66,132.52,20.0]
[1720397009888,100.0,132.66,132.54,38.4]
[1720397010228,0.8159368,132.71,132.56,7.8915]
[1720397010402,0.8159368,132.71,132.58,43.6797]
[1720397010403,100.0,132.7,132.58,43.6797]
[1720397010592,0.8159368,132.71,132.59,20.17]
[1720397010791,0.8159368,132.71,132.63,21.1959]
[1720397011102,0.8159368,132.71,132.64,20.17]
[1720397012090,0.8159368,132.71,132.65,8.0082]
[1720397012306,100.0,132.77,132.66,20.17]
[1720397012509,100.0,132.77,132.66,58.57]
[1720397012813,100.0,132.79,132.66,58.57]
[1720397013188,100.0,132.79,132.67,5.2758]
[1720397013389,100.0,132.82,132.71,5.2745]
[1720397013590,100.8159368,132.84,132.72,25.444]
[1720397013793,100.8159368,132.84,132.72,20.17]
[1720397014003,100.0,132.82,132.72,20.17]
[1720397014203,100.0,132.81,132.73,20.0]
[1720397014404,100.0,132.83,132.74,0.17]
[1720397014619,100.0,132.81,132.74,0.17]
[1720397014934,100.0,132.83,132.74,0.17]
[1720397015399,0.8159368,132.84,132.74,0.17]
[1720397015589,100.0,132.83,132.73,20.17]
[1720397016512,0.8159368,132.84,132.73,0.17]
[1720397016683,100.0,132.81,132.72,0.17]
[1720397016883,100.0,132.81,132.71,20.0]
[1720397017105,100.0,132.79,132.7,38.4]
[1720397017302,100.0,132.77,132.66,38.4]
[1720397017501,100.0,132.76,132.66,38.4]
[1720397018007,100.0,132.82,132.67,15.0]
[1720397018186,0.8159368,132.84,132.72,5.2741]
[1720397018390,0.8159368,132.84,132.71,5.2746]
[1720397018692,0.8159368,132.84,132.73,38.4]
[1720397019000,100.0,132.81,132.75,20.6541]
[1720397019307,0.8159368,132.84,132.76,20.17]
[1720397019499,0.8159368,132.84,132.77,8.5338]
[1720397019686,0.8159368,132.84,132.78,20.17]
[1720397021912,100.0,132.91,132.78,20.17]
[1720397022119,100.0,132.93,132.82,38.4]
[1720397022297,100.0,132.91,132.83,20.17]
[1720397022698,100.0,132.95,132.83,20.17]
[1720397023018,100.0,132.93,132.83,20.17]
[1720397023186,100.0,132.91,132.83,20.17]
[1720397023503,100.0,132.93,132.83,20.17]
[1720397024012,100.0,132.89,132.83,20.0]
[1720397024403,100.0,132.86,132.78,38.4]
[1720397024603,100.0,132.88,132.78,38.4]
[1720397025108,100.0,132.84,132.77,8.5338]
[1720397025319,100.0,132.87,132.77,8.5338]
[1720397025624,100.0,132.86,132.77,8.5338]
[1720397025804,100.0,132.84,132.77,8.5338]
[1720397026591,100.0,132.82,132.77,8.5338]
[1720397027016,100.0,132.79,132.75,20.6541]
[1720397027401,100.0,132.79,132.72,8.4459]
[1720397029315,100.0,132.77,132.73,20.0]
[1720397029614,100.0,132.79,132.73,20.0]
[1720397029808,15.0,132.86,132.72,8.4459]
[1720397030115,100.0,132.77,132.72,8.4459]
[1720397030501,100.0,132.74,132.7,20.4599]
[1720397030723,100.0,132.74,132.67,8.1976]
[1720397031607,100.0,132.75,132.67,8.1976]
[1720397031990,100.0,132.8,132.67,8.1976]
[1720397032191,100.0,132.77,132.67,8.1976]
[1720397032508,100.0,132.73,132.67,8.1976]
[1720397032714,100.0,132.76,132.67,8.1976]
[1720397033200,20.0,132.75,132.67,8.1976]
[1720397033400,20.0,132.79,132.67,8.1976]
[1720397033401,100.0,132.76,132.67,8.1976]
[1720397033600,20.0,132.75,132.67,8.1976]
[1720397033819,100.0,132.73,132.67,8.1976]
[1720397034202,7.807,132.82,132.67,8.1976]
[1720397034393,100.0,132.8,132.67,8.1976]
[1720397034606,100.0,132.77,132.68,20.0]
[1720397035296,100.0,132.8,132.69,0.17]
[1720397035727,100.0,132.76,132.69,0.17]
[1720397035897,100.0,132.78,132.69,0.17]
[1720397036302,100.0,132.83,132.69,0.17]
[1720397036528,100.0,132.79,132.69,0.17]
[1720397036904,23.2796,132.87,132.69,0.17]
[1720397037112,100.0,132.83,132.69,0.17]
[1720397037317,100.0,132.77,132.69,0.17]
[1720397037625,15.0,132.85,132.68,20.0]
[1720397037799,8.2796,132.87,132.68,20.0]
[1720397037800,0.17,132.84,132.68,20.0]
[1720397038001,100.0,132.79,132.68,20.0]
[1720397038414,100.0,132.78,132.68,20.0]
[1720397038623,100.0,132.79,132.68,20.0]
[1720397038818,100.0,132.76,132.68,20.0]
[1720397039038,100.0,132.76,132.67,8.1976]
[1720397039329,100.0,132.73,132.57,7.585]
[1720397039499,8.1665,132.75,132.51,39.2159368]
[1720397039500,100.0,132.65,132.51,39.2159368]
[1720397039701,100.0,132.65,132.52,5.2819]
[1720397039932,100.0,132.65,132.53,22.7]
[1720397040231,100.0,132.65,132.53,27.9817]
[1720397041809,100.0,132.72,132.59,61.1]
[1720397042030,100.0,132.72,132.6,20.0]
[1720397042235,8.1665,132.82,132.6,20.0]
[1720397042236,100.0,132.7,132.6,20.0]
[1720397042428,8.1665,132.82,132.6,20.0]
[1720397042429,100.0,132.66,132.6,20.0]
[1720397042753,100.0,132.66,132.57,19.9329]
[1720397043032,100.0,132.69,132.57,19.9329]
[1720397043334,100.0,132.69,132.57,42.6329]
[1720397043639,10.33650777,132.81,132.58,43.6797]
[1720397043640,100.0,132.72,132.58,43.6797]
[1720397043842,28.1516,132.9,132.65,8.6444]
[1720397044010,100.0,132.87,132.69,38.4]
[1720397044211,100.0,132.87,132.73,61.1]
[1720397044416,100.0,132.85,132.74,20.17]
[1720397044645,100.0,132.82,132.74,20.17]
[1720397045310,28.1516,132.9,132.74,20.17]
[1720397045311,100.0,132.77,132.74,20.17]
[1720397045624,260.1,132.88,132.65,90.7213]
[1720397045625,100.0,132.75,132.66,20.0]
[1720397045825,100.0,132.75,132.65,47.0444]
[1720397046147,100.0,132.78,132.65,47.0444]
[1720397046343,100.0,132.75,132.65,47.0444]
[1720397046518,100.0,132.73,132.65,47.0444]
[1720397046718,100.0,132.71,132.65,8.6444]
[1720397046920,100.0,132.71,132.58,76.8]
[1720397046921,100.0,132.67,132.59,8.4675]
[1720397047220,8.7222,132.79,132.59,8.4675]
[1720397047221,100.0,132.7,132.59,8.4675]
[1720397047413,100.0,132.65,132.59,8.4675]
[1720397047636,100.0,132.67,132.59,8.4675]
[1720397047833,100.0,132.77,132.59,46.8675]
[1720397048037,100.0,132.75,132.63,38.4]
[1720397048241,20.0,132.76,132.63,66.3778]
[1720397048422,20.0,132.76,132.64,1.36140172]
[1720397048613,100.0,132.78,132.67,38.4]
[1720397048814,100.0,132.8,132.68,42.7]
[1720397049015,100.0,132.82,132.69,0.17]
[1720397049237,100.0,132.79,132.69,0.17]
[1720397049945,100.0,132.77,132.69,0.17]
[1720397050521,100.0,132.75,132.68,20.0]
[1720397050731,100.0,132.78,132.68,20.0]
[1720397050938,100.0,132.76,132.66,20.0]
[1720397051325,100.0,132.74,132.66,20.0]
[1720397051923,100.0,132.78,132.66,20.0]
[1720397052121,100.0,132.76,132.66,20.0]
[1720397052617,29.9877,132.85,132.66,42.7]
[1720397052824,100.0,132.81,132.67,30.6295]
[1720397053021,8.5461,132.9,132.7,82.5066]
[1720397053022,100.0,132.84,132.7,82.5066]
[1720397053220,100.0,132.8,132.71,20.17]
[1720397053620,100.0,132.78,132.67,7.9295]
[1720397053825,260.1,132.84,132.67,7.9295]
[1720397054015,260.1,132.84,132.67,13.2057]
[1720397054341,100.0,132.75,132.67,7.9295]
[1720397055142,100.0,132.73,132.67,7.9295]
[1720397055333,13.42261574,132.83,132.67,7.9295]
[1720397055517,13.42261574,132.83,132.64,36.4066]
[1720397055518,100.0,132.74,132.64,36.4066]
[1720397055921,100.0,132.72,132.64,36.4066]
[1720397057242,100.0,132.7,132.63,15.0]
[1720397057622,260.1,132.77,132.63,15.0]
[1720397057843,100.0,132.71,132.63,15.0]
[1720397058047,100.0,132.73,132.63,15.0]
[1720397058347,100.0,132.71,132.63,15.0]
[1720397058527,0.17,132.76,132.64,0.17]
[1720397058739,100.0,132.71,132.64,0.17]
[1720397058922,100.0,132.71,132.63,15.0]
[1720397059520,20.17,132.76,132.63,15.0]
[1720397059991,20.0,132.76,132.63,15.0]
[1720397060127,100.0,132.74,132.64,20.0]
[1720397060322,100.0,132.74,132.65,0.17]
[1720397060847,100.0,132.68,132.63,15.0]
[1720397061019,100.0,132.66,132.61,22.8891]
[1720397061226,100.0,132.66,132.61,7.8891]
[1720397061442,100.0,132.64,132.58,19.8197]
[1720397061658,100.0,132.66,132.58,19.8197]
[1720397062156,100.0,132.68,132.58,19.8197]
[1720397062736,100.0,132.71,132.59,35.0]
[1720397062921,100.0,132.67,132.59,35.0]
[1720397063127,100.0,132.65,132.59,20.0]
[1720397063434,100.0,132.62,132.57,15.0]
[1720397063635,100.0,132.62,132.55,8.5872]
[1720397063846,260.1,132.71,132.55,8.5872]
[1720397063847,100.0,132.6,132.55,8.5872]
[1720397064155,100.0,132.6,132.53,21.6218]
[1720397064156,100.0,132.58,132.53,21.6218]
[1720397064463,100.0,132.56,132.51,0.8159368]
[1720397064868,100.0,132.54,132.51,0.8159368]
[1720397065358,100.0,132.56,132.51,0.8159368]
[1720397066353,100.0,132.54,132.51,0.8159368]
[1720397066741,100.0,132.52,132.51,0.8159368]
[1720397066934,100.17,132.52,132.51,0.8159368]
[1720397067133,100.0,132.52,132.51,0.8159368]
[1720397068140,120.17,132.52,132.51,0.8159368]
[1720397070033,120.0,132.52,132.51,0.8159368]
[1720397071360,120.17,132.52,132.51,0.8159368]
[1720397072570,100.0,132.53,132.51,0.8159368]
[1720397075263,20.0,132.52,132.51,0.8159368]
[1720397075971,100.0,132.53,132.51,0.8159368]
[1720397077369,20.17,132.52,132.51,0.8159368]
[1720397077740,20.0,132.52,132.51,0.8159368]
[1720397078642,20.17,132.52,132.51,0.8159368]
[1720397079769,120.17,132.52,132.51,0.8159368]
[1720397081642,120.0,132.52,132.51,0.8159368]
[1720397083064,120.17,132.52,132.51,0.8159368]
[1720397083675,380.27,132.52,132.51,0.8159368]
[1720397084044,100.0,132.42,132.38,35.4065368]
[1720397084247,100.0,132.42,132.38,20.4065368]
[1720397084463,100.0,132.4,132.38,0.8159368]
[1720397084863,100.0,132.39,132.38,0.8159368]
[1720397085664,100.0,132.43,132.38,0.8159368]
[1720397085876,100.0,132.41,132.38,0.8159368]
[1720397086049,100.0,132.39,132.38,0.8159368]
[1720397086450,100.0,132.43,132.38,0.8159368]
[1720397086652,120.0,132.42,132.38,0.8159368]
[1720397086852,100.0,132.4,132.38,0.8159368]
[1720397087156,100.0,132.39,132.38,0.8159368]
[1720397087678,100.0,132.45,132.39,15.0]
[1720397087846,20.0,132.44,132.38,0.8159368]
[1720397088046,100.0,132.43,132.38,0.8159368]
[1720397088282,20.0,132.44,132.38,0.8159368]
[1720397088283,100.0,132.41,132.38,0.8159368]
[1720397088990,120.0,132.44,132.38,0.8159368]
[1720397090009,100.0,132.42,132.38,0.8159368]
[1720397090178,100.0,132.42,132.38,15.8159368]
[1720397090655,100.0,132.44,132.38,15.8159368]
[1720397091065,100.0,132.44,132.4,15.0]
[1720397093273,100.0,132.46,132.39,0.17]
[1720397093474,100.0,132.43,132.39,0.17]
[1720397093674,260.1,132.52,132.4,15.0]
[1720397093675,100.0,132.47,132.4,15.0]
[1720397093970,20.0,132.46,132.4,15.0]
[1720397094570,100.0,132.44,132.41,0.17]
[1720397094772,100.0,132.44,132.39,0.17]
[1720397095179,100.0,132.46,132.4,15.0]
[1720397096082,100.0,132.44,132.4,15.0]
[1720397098389,100.0,132.41,132.38,15.8159368]
[1720397098555,100.0,132.41,132.38,0.8159368]
[1720397099590,5.31923272,132.55,132.44,5.285]
[1720397099787,8.4992,132.62,132.51,15.0]
[1720397100078,100.0,132.58,132.53,15.0]
[1720397100480,8.4992,132.67,132.53,8.8908]
[1720397100654,8.4992,132.67,132.55,15.0]
[1720397100655,100.0,132.62,132.55,15.0]
[1720397100858,8.4992,132.67,132.55,15.0]
[1720397101285,100.0,132.69,132.59,15.0]
[1720397101576,8.8238,132.72,132.57,15.0]
[1720397101794,8.8238,132.72,132.58,20.17]
[1720397101795,100.0,132.67,132.58,20.17]
[1720397101964,8.8238,132.72,132.57,15.0]
[1720397102167,8.8238,132.72,132.55,15.0]
[1720397102359,8.8238,132.72,132.56,20.17]
[1720397102666,100.0,132.6,132.56,20.0]
[1720397102980,100.0,132.6,132.55,15.0]
[1720397103384,100.0,132.57,132.52,15.0]
[1720397103584,40.98186155,132.71,132.52,15.0]
[1720397103770,45.17,132.7,132.48,9.0241]
[1720397103961,100.0,132.61,132.54,15.0]
[1720397104159,12.64501896,132.71,132.56,15.0]
[1720397104372,12.64501896,132.71,132.48,14.3076]
[1720397104373,100.0,132.65,132.58,15.0]
[1720397104682,20.0,132.64,132.56,15.0]
[1720397104861,20.0,132.64,132.58,15.0]
[1720397105058,2.58186155,132.71,132.6,15.0]
[1720397105059,100.0,132.68,132.6,15.0]
[1720397105262,100.0,132.64,132.58,15.0]
[1720397105896,100.0,132.62,132.54,15.0]
[1720397106063,100.0,132.63,132.54,15.0]
[1720397106265,100.0,132.59,132.54,15.0]
[1720397106475,100.0,132.59,132.52,15.0]
[1720397106674,20.0,132.58,132.52,15.0]
[1720397106986,100.0,132.56,132.52,15.0]
[1720397107189,20.0,132.55,132.5,15.0]
[1720397107366,100.0,132.54,132.5,15.0]
[1720397108085,20.0,132.55,132.5,15.0]
[1720397108283,20.0,132.58,132.5,15.0]
[1720397108786,100.0,132.59,132.53,15.0]
[1720397109589,100.0,132.59,132.55,15.0]
[1720397109788,100.0,132.65,132.56,0.17]
[1720397109986,100.0,132.65,132.57,15.0]
[1720397110167,260.1,132.69,132.56,0.17]
[1720397110168,100.0,132.62,132.56,0.17]
[1720397110370,100.0,132.59,132.55,15.0]
[1720397110668,100.0,132.57,132.51,15.0]
[1720397110994,100.0,132.55,132.47,22.7735]
[1720397111296,100.0,132.51,132.44,15.0]
[1720397112000,100.0,132.5,132.42,22.4856]
[1720397112291,100.0,132.51,132.42,37.4856]
[1720397112477,100.0,132.54,132.44,15.0]
[1720397112692,20.0,132.53,132.44,15.0]
[1720397113385,20.0,132.53,132.42,22.4856]
[1720397113781,100.0,132.5,132.42,22.4856]
[1720397113982,100.0,132.52,132.42,22.4856]
[1720397114200,260.1,132.6,132.42,22.4856]
[1720397114201,20.0,132.51,132.42,22.4856]
[1720397114899,100.0,132.51,132.41,15.0]
[1720397115082,20.0,132.5,132.41,15.0]
[1720397115288,20.0,132.52,132.43,15.0]
[1720397115482,20.0,132.52,132.38,14.7954368]
[1720397115483,20.0,132.52,132.44,15.0]
[1720397115794,20.0,132.52,132.42,15.0]
[1720397116174,20.0,132.52,132.43,0.17]
[1720397116582,100.0,132.49,132.43,0.17]
[1720397116886,100.0,132.51,132.43,0.17]
[1720397117093,20.0,132.5,132.42,15.0]
[1720397117406,100.0,132.51,132.39,15.0]
[1720397117581,267.97846644,132.6,132.39,15.0]
[1720397117782,100.0,132.52,132.39,15.0]
[1720397117997,267.97846644,132.6,132.39,15.0]
[1720397118509,100.0,132.51,132.4,0.17]
[1720397118693,100.0,132.48,132.4,0.17]
[1720397118883,20.0,132.47,132.4,0.17]
[1720397119205,100.0,132.49,132.41,15.0]
[1720397119409,100.0,132.51,132.42,0.17]
[1720397119915,100.0,132.51,132.39,15.0]
[1720397120122,100.0,132.53,132.4,20.17]
[1720397120403,267.97846644,132.6,132.42,38.4]
[1720397120404,100.0,132.58,132.42,38.4]
[1720397120711,100.0,132.57,132.4,15.0]
[1720397120925,100.0,132.55,132.39,15.0]
[1720397121201,100.0,132.49,132.39,15.0]
[1720397121407,8.808,132.61,132.4,0.3932548]
[1720397121704,8.808,132.61,132.39,15.0]
[1720397121705,100.0,132.52,132.39,15.0]
[1720397121906,20.0,132.51,132.39,15.0]
[1720397122389,20.0,132.51,132.41,15.0]
[1720397122588,20.0,132.51,132.42,0.17]
[1720397122807,100.0,132.53,132.42,0.17]
[1720397122980,100.0,132.5,132.42,1.17]
[1720397123188,20.0,132.49,132.42,1.17]
[1720397123599,100.0,132.5,132.42,1.17]
[1720397123806,100.0,132.5,132.42,21.17]
[1720397124004,100.0,132.53,132.42,21.17]
[1720397124199,20.0,132.52,132.42,21.17]
[1720397124524,20.0,132.52,132.44,15.0]
[1720397124829,100.0,132.54,132.45,0.17]
[1720397124993,100.0,132.54,132.46,15.0]
[1720397125195,100.0,132.56,132.47,0.17]
[1720397125395,100.0,132.56,132.47,31.489]
[1720397126005,100.0,132.55,132.47,31.489]
[1720397126217,100.0,132.57,132.47,31.489]
[1720397126402,100.0,132.55,132.47,31.489]
[1720397126596,20.0,132.54,132.47,31.489]
[1720397126937,100.0,132.53,132.47,31.489]
[1720397127392,20.0,132.54,132.47,31.489]
[1720397127596,100.0,132.53,132.47,31.489]
[1720397127797,100.0,132.53,132.43,9.017]
[1720397127798,20.0,132.52,132.43,9.017]
[1720397128232,20.0,132.52,132.44,15.0]
[1720397128403,20.0,132.52,132.43,9.017]
[1720397128404,100.0,132.52,132.43,9.017]
[1720397128605,100.0,132.5,132.43,9.017]
[1720397129107,100.0,132.47,132.43,9.017]
[1720397129306,100.0,132.47,132.42,22.8257]
[1720397129512,100.0,132.49,132.42,1.0]
[1720397129705,100.0,132.53,132.42,1.0]
[1720397130026,100.0,132.53,132.44,15.0]
[1720397130319,100.0,132.49,132.42,1.0]
[1720397130508,260.1,132.58,132.42,1.0]
[1720397131032,100.0,132.51,132.42,21.0]
[1720397131235,260.1,132.58,132.43,15.0]
[1720397131236,20.0,132.5,132.43,15.0]
[1720397131544,100.0,132.49,132.43,15.0]
[1720397131703,100.0,132.49,132.44,0.17]
[1720397132016,100.0,132.51,132.44,0.17]
[1720397132207,20.0,132.5,132.44,0.17]
[1720397132404,20.0,132.5,132.43,15.0]
[1720397132405,100.0,132.48,132.42,1.0]
[1720397132794,100.0,132.48,132.42,16.0]
[1720397133219,20.0,132.5,132.42,16.0]
[1720397133220,120.0,132.5,132.42,1.0]
[1720397133420,100.0,132.48,132.42,16.0]
[1720397133611,120.0,132.5,132.42,16.0]
[1720397133809,100.0,132.48,132.42,1.0]
[1720397134007,100.0,132.48,132.42,16.0]
[1720397134205,100.0,132.46,132.42,1.0]
[1720397134406,100.0,132.48,132.42,1.0]
[1720397134917,100.0,132.48,132.42,16.0]
[1720397135098,100.0,132.46,132.42,1.0]
[1720397135304,100.0,132.48,132.42,1.0]
[1720397135511,100.0,132.49,132.42,16.0]
[1720397135728,100.0,132.47,132.42,16.0]
[1720397136710,100.0,132.47,132.43,0.17]
[1720397137024,120.0,132.5,132.43,0.17]
[1720397137207,100.0,132.47,132.43,0.17]
[1720397137401,120.0,132.5,132.42,1.0]
[1720397137738,120.0,132.5,132.43,0.17]
[1720397137910,100.0,132.48,132.42,16.0]
[1720397138234,100.0,132.48,132.43,0.17]
[1720397138442,100.0,132.46,132.42,16.0]
[1720397138721,100.0,132.46,132.42,1.0]
[1720397139029,100.0,132.48,132.42,1.0]
[1720397139329,20.0,132.47,132.42,16.0]
[1720397140021,20.0,132.47,132.42,1.0]
[1720397140807,100.0,132.46,132.42,1.0]
[1720397141227,100.0,132.47,132.42,1.0]
[1720397141417,100.0,132.45,132.42,1.0]
[1720397141624,100.0,132.48,132.42,1.0]
[1720397141822,20.0,132.47,132.43,0.17]
[1720397142212,100.0,132.46,132.43,0.17]
[1720397142716,20.0,132.47,132.43,0.17]
[1720397142938,100.0,132.45,132.42,1.0]
[1720397143529,120.0,132.47,132.42,1.0]
[1720397143727,100.0,132.44,132.42,1.0]
[1720397144012,100.0,132.48,132.42,1.0]
[1720397144214,100.0,132.48,132.43,0.17]
[1720397144814,100.0,132.46,132.43,0.17]
[1720397145142,100.0,132.46,132.42,1.0]
[1720397145315,100.0,132.5,132.43,0.17]
[1720397145730,100.0,132.48,132.43,0.17]
[1720397146962,100.0,132.46,132.43,0.17]
[1720397147618,100.0,132.48,132.42,1.0]
[1720397147823,20.0,132.47,132.43,0.17]
[1720397148134,100.0,132.46,132.43,0.17]